fUSD/lending_fUSD_20240930
["ID","MTS","AMOUNT","RATE_DAILY","PERIOD"]
[339512471,1727670734463,-500.0,0.00012493,2]
[339512472,1727670734503,-1115.36,0.00012493,2]
[339512473,1727670734548,-1735.97,0.00012493,2]
[339512474,1727670734592,-1115.36,0.00012493,2]
[339512475,1727670734635,-500.0,0.00012493,2]
[339512476,1727670734677,-500.0,0.00012493,2]
[339512477,1727670734718,-1735.97,0.00012493,2]
[339512478,1727670734759,-1115.36,0.00012493,2]
[339512479,1727670734800,-500.0,0.00012493,2]
[339512480,1727670734842,-1735.97,0.00012493,2]
[339512481,1727670734881,-500.0,0.00012493,2]
[339512482,1727670734920,-1115.53692475,0.00012493,2]
[339512483,1727670734958,-500.0,0.00012493,2]
[339512484,1727670734996,-500.0,0.00012493,2]
[339512485,1727670735034,-1735.97,0.00012493,2]
[339512486,1727670735073,-1735.97,0.00012493,2]
[339512487,1727670735113,-500.0,0.00012493,2]
[339512488,1727670735154,-500.0,0.00012493,2]
[339512489,1727670735196,-500.0,0.00012493,2]
[339512490,1727670735236,-1735.97,0.00012493,2]
[339512491,1727670735275,-500.0,0.00012493,2]
[339512492,1727670735315,-500.0,0.00012493,2]
[339512493,1727670735355,-1735.97,0.00012493,2]
[339512494,1727670735395,-500.0,0.00012493,2]
[339512495,1727670735437,-1735.97,0.00012493,2]
[339512496,1727670735482,-500.0,0.00012493,2]
[339512497,1727670735527,-440.95174823,0.00012493,2]
[339512498,1727670735571,-500.0,0.00012493,2]
[339512499,1727670735617,-1735.97,0.00012493,2]
[339512500,1727670735662,-500.0,0.00012493,2]
[339512501,1727670735708,-1735.97,0.00012493,2]
[339512502,1727670735752,-500.0,0.00012493,2]
[339512503,1727670735797,-1735.97,0.00012493,2]
[339512504,1727670735842,-500.0,0.00012493,2]
[339512505,1727670735887,-1736.17187699,0.00012493,2]
[339512506,1727670735930,-500.0,0.00012493,2]
[339512507,1727670735976,-500.0,0.00012493,2]
[339512508,1727670736024,-290.99655606,0.00012493,2]
[339512509,1727670736069,-500.0,0.00012493,2]
[339512510,1727670736113,-500.0,0.00012493,2]
[339512511,1727670736157,-218.05637492,0.00012493,2]
[339512512,1727670736199,-309.46727963,0.00012493,2]
[339512513,1727670736242,-500.0,0.00012493,2]
[339512514,1727670736284,-511.00602005,0.00012493,2]
[339512515,1727670736325,-500.0,0.00012493,2]
[339512516,1727670736366,-234.11184082,0.00012493,2]
[339512517,1727670736408,-500.0,0.00012493,2]
[339512518,1727670736448,-500.0,0.00012493,2]
[339512519,1727670736488,-500.0,0.00012493,2]
[339512520,1727670736529,-309.2696671,0.00012493,2]
[339512521,1727670736572,-500.0,0.00012493,2]
[339512522,1727670736616,-500.0,0.00012493,2]
[339512523,1727670736656,-500.0,0.00012493,2]
[339512524,1727670736698,-503.94273457,0.00012493,2]
[339512525,1727670736738,-500.0,0.00012493,2]
[339512526,1727670736778,-500.0,0.00012493,2]
[339512527,1727670736818,-500.0,0.00012493,2]
[339512528,1727670736860,-500.0,0.00012493,2]
[339512529,1727670736898,-500.0,0.00012493,2]
[339512530,1727670736938,-505.49886449,0.00012493,2]
[339512531,1727670736978,-500.0,0.00012493,2]
[339512532,1727670737019,-278.41334175,0.00012493,2]
[339512533,1727670737060,-500.0,0.00012493,2]
[339512534,1727670737103,-500.0,0.00012493,2]
[339512535,1727670737146,-500.0,0.00012493,2]
[339512536,1727670737189,-500.0,0.00012493,2]
[339512537,1727670737232,-501.39574914,0.00012493,2]
[339512538,1727670737271,-501.21566769,0.00012493,2]
[339512539,1727670737309,-500.0,0.00012493,2]
[339512540,1727670737347,-500.0,0.00012493,2]
[339512541,1727670737385,-578.8971983,0.00012493,2]
[339512542,1727670737423,-501.57661825,0.00012493,2]
[339512543,1727670737462,-500.0,0.00012493,2]
[339512544,1727670737499,-502.32793287,0.00012493,2]
[339512545,1727670737543,-500.0,0.00012493,2]
[339512546,1727670737587,-500.0,0.00012493,2]
[339512547,1727670737631,-500.0,0.00012493,2]
[339512548,1727670737675,-500.0,0.00012493,2]
[339512549,1727670737718,-500.0,0.00012493,2]
[339512550,1727670737760,-506.11168852,0.00012493,2]
[339512551,1727670737802,-500.0,0.00012493,2]
[339512552,1727670737848,-500.0,0.00012493,2]
[339512553,1727670737888,-500.0,0.00012493,2]
[339512554,1727670737930,-500.0,0.00012493,2]
[339512555,1727670737974,-500.0,0.00012493,2]
[339512556,1727670738023,-500.0,0.00012493,2]
[339512557,1727670738066,-500.0,0.00012493,2]
[339512558,1727670738355,-500.0,0.00012493,2]
[339512559,1727670738403,-500.0,0.00012493,2]
[339512560,1727670738452,-500.0,0.00012493,2]
[339512561,1727670738500,-500.0,0.00012493,2]
[339512562,1727670738552,-500.0,0.00012493,2]
[339512563,1727670738600,-500.0,0.00012493,2]
[339512564,1727670738644,-500.0,0.00012493,2]
[339512565,1727670738688,-500.0,0.00012493,2]
[339512566,1727670738732,-500.0,0.00012493,2]
[339512567,1727670738776,-500.0,0.00012493,2]
[339512568,1727670738821,-500.0,0.00012493,2]
[339512569,1727670738865,-642.73384881,0.00012493,2]
[339512570,1727670738909,-500.73625575,0.00012493,2]
[339512571,1727670738951,-500.0,0.00012493,2]
[339512572,1727670738992,-500.0,0.00012493,2]
[339512573,1727670739035,-500.0,0.00012493,2]
[339512574,1727670739077,-500.0,0.00012493,2]
[339512575,1727670739125,-500.0,0.00012493,2]
[339512576,1727670739168,-397.31358998,0.00012493,2]
[339512577,1727670739213,-500.0,0.00012493,2]
[339512578,1727670739256,-500.0,0.00012493,2]
[339512579,1727670739299,-500.0,0.00012493,2]
[339512580,1727670739346,-500.0,0.00012493,2]
[339512581,1727670739391,-500.0,0.00012493,2]
[339512582,1727670739436,-500.0,0.00012493,2]
[339512583,1727670739479,-500.0,0.00012493,2]
[339512584,1727670739520,-500.0,0.00012493,2]
[339512585,1727670739562,-307.8727541,0.00012493,2]
[339512586,1727670739605,-500.0,0.00012493,2]
[339512587,1727670739651,-500.44521881,0.00012493,2]
[339512588,1727670739695,-500.0,0.00012493,2]
[339512589,1727670739738,-500.0,0.00012493,2]
[339512590,1727670739783,-273.35169414,0.00012493,2]
[339512591,1727670739828,-500.0,0.00012493,2]
[339512592,1727670739874,-500.0,0.00012493,2]
[339512593,1727670739917,-500.0,0.00012493,2]
[339512594,1727670739961,-500.0,0.00012493,2]
[339512595,1727670740005,-500.0,0.00012493,2]
[339512596,1727670740047,-500.0,0.00012493,2]
[339512597,1727670740089,-500.0,0.00012493,2]
[339512598,1727670740133,-496.28275635,0.00012493,2]
[339512599,1727670740178,-500.0,0.00012493,2]
[339512600,1727670740224,-500.0,0.00012493,2]
[339512601,1727670740266,-500.0,0.00012493,2]
[339512602,1727670740311,-500.0,0.00012493,2]
[339512603,1727670740354,-500.0,0.00012493,2]
[339512604,1727670740397,-503.5670675,0.00012493,2]
[339512605,1727670740443,-500.0,0.00012493,2]
[339512606,1727670740485,-500.0,0.00012493,2]
[339512607,1727670740530,-500.0,0.00012493,2]
[339512608,1727670740580,-500.0,0.00012493,2]
[339512609,1727670740630,-500.0,0.00012493,2]
[339512610,1727670740674,-500.0,0.00012493,2]
[339512611,1727670740718,-500.0,0.00012493,2]
[339512612,1727670740763,-500.0,0.00012493,2]
[339512613,1727670740808,-500.0,0.00012493,2]
[339512614,1727670740851,-500.0,0.00012493,2]
[339512615,1727670740894,-500.0,0.00012493,2]
[339512616,1727670740937,-402.0393716,0.00012493,2]
[339512617,1727670740981,-500.0,0.00012493,2]
[339512618,1727670741024,-500.0,0.00012493,2]
[339512619,1727670741067,-500.0,0.00012493,2]
[339512620,1727670741108,-500.0,0.00012493,2]
[339512621,1727670741150,-524.8273622,0.00012493,2]
[339512622,1727670741190,-500.0,0.00012493,2]
[339512623,1727670741229,-301.05278392,0.00012493,2]
[339512624,1727670741269,-500.0,0.00012493,2]
[339512625,1727670741308,-500.0,0.00012493,2]
[339512626,1727670741350,-500.0,0.00012493,2]
[339512627,1727670741389,-500.0,0.00012493,2]
[339512628,1727670741426,-500.0,0.00012493,2]
[339512629,1727670741464,-500.0,0.00012493,2]
[339512630,1727670741502,-500.0,0.00012493,2]
[339512631,1727670741542,-500.0,0.00012493,2]
[339512632,1727670741579,-500.0,0.00012493,2]
[339512633,1727670741621,-501.85718149,0.00012493,2]
[339512634,1727670741659,-500.0,0.00012493,2]
[339512635,1727670741696,-500.0,0.00012493,2]
[339512636,1727670741734,-500.0,0.00012493,2]
[339512637,1727670741774,-500.0,0.00012493,2]
[339512638,1727670741812,-500.0,0.00012493,2]
[339512639,1727670741850,-500.0,0.00012493,2]
[339512640,1727670741887,-500.0,0.00012493,2]
[339512641,1727670741926,-450.81567042,0.00012493,2]
[339512642,1727670741966,-500.0,0.00012493,2]
[339512643,1727670742004,-500.0,0.00012493,2]
[339512644,1727670742042,-500.0,0.00012493,2]
[339512645,1727670742080,-500.0,0.00012493,2]
[339512646,1727670742121,-500.0,0.00012493,2]
[339512647,1727670742162,-500.0,0.00012493,2]
[339512648,1727670742199,-500.0,0.00012493,2]
[339512649,1727670742236,-500.0,0.00012493,2]
[339512650,1727670742277,-500.0,0.00012493,2]
[339512651,1727670742316,-500.0,0.00012493,2]
[339512652,1727670742352,-500.0,0.00012493,2]
[339512653,1727670742388,-247.7261128,0.00012493,2]
[339512654,1727670742426,-500.0,0.00012493,2]
[339512655,1727670742463,-500.0,0.00012493,2]
[339512656,1727670742501,-500.0,0.00012493,2]
[339512657,1727670742544,-500.0,0.00012493,2]
[339512658,1727670742588,-500.0,0.00012493,2]
[339512659,1727670742637,-500.0,0.00012493,2]
[339512660,1727670742679,-502.74322014,0.00012493,2]
[339512661,1727670742721,-500.0,0.00012493,2]
[339512662,1727670742759,-155.77315557,0.00012493,2]
[339512663,1727670742797,-500.0,0.00012493,2]
[339512664,1727670742836,-548.85965774,0.00012493,2]
[339512665,1727670742876,-500.0,0.00012493,2]
[339512666,1727670742916,-500.0,0.00012493,2]
[339512667,1727670742955,-500.0,0.00012493,2]
[339512668,1727670742992,-500.0,0.00012493,2]
[339512669,1727670743030,-500.0,0.00012493,2]
[339512670,1727670743069,-500.0,0.00012493,2]
[339512671,1727670743111,-500.0,0.00012493,2]
[339512672,1727670743151,-500.0,0.00012493,2]
[339512673,1727670743192,-500.0,0.00012493,2]
[339512674,1727670743234,-501.1443435,0.00012493,2]
[339512675,1727670743276,-233.96573235,0.00012493,2]
[339512676,1727670743318,-500.0,0.00012493,2]
[339512677,1727670743361,-500.0,0.00012493,2]
[339512678,1727670743404,-500.0,0.00012493,2]
[339512679,1727670743445,-500.0,0.00012493,2]
[339512680,1727670743489,-150.0,0.00012493,2]
[339512681,1727670743533,-500.0,0.00012493,2]
[339512682,1727670743577,-500.0,0.00012493,2]
[339512683,1727670743624,-500.0,0.00012493,2]
[339512684,1727670743670,-500.0,0.00012493,2]
[339512685,1727670743716,-150.0,0.00012493,2]
[339512686,1727670743760,-500.0,0.00012493,2]
[339512687,1727670743803,-500.0,0.00012493,2]
[339512688,1727670743847,-500.0,0.00012493,2]
[339512689,1727670743889,-150.0,0.00012493,2]
[339512690,1727670743930,-500.0,0.00012493,2]
[339512691,1727670743973,-500.0,0.00012493,2]
[339512692,1727670744014,-500.0,0.00012493,2]
[339512693,1727670744054,-150.0,0.00012493,2]
[339512694,1727670744094,-500.0,0.00012493,2]
[339512695,1727670744135,-506.3913148,0.00012493,2]
[339512696,1727670744178,-500.0,0.00012493,2]
[339512697,1727670744219,-500.0,0.00012493,2]
[339512698,1727670744261,-150.0,0.00012493,2]
[339512699,1727670744301,-500.0,0.00012493,2]
[339512700,1727670744343,-500.0,0.00012493,2]
[339512701,1727670744387,-500.0,0.00012493,2]
[339512702,1727670744433,-150.0,0.00012493,2]
[339512703,1727670744478,-500.0,0.00012493,2]
[339512704,1727670744521,-500.0,0.00012493,2]
[339512705,1727670744565,-500.0,0.00012493,2]
[339512706,1727670744610,-150.0,0.00012493,2]
[339512707,1727670744655,-500.0,0.00012493,2]
[339512708,1727670744701,-500.0,0.00012493,2]
[339512709,1727670744746,-506.89168817,0.00012493,2]
[339512710,1727670744789,-150.0,0.00012493,2]
[339512711,1727670744834,-500.0,0.00012493,2]
[339512712,1727670744879,-500.0,0.00012493,2]
[339512713,1727670744924,-150.0,0.00012493,2]
[339512714,1727670744972,-471.30517278,0.00012493,2]
[339512715,1727670758704,-567.14,0.000109,2]
[339512716,1727670758724,-272.1846872,0.000109,2]
[339512717,1727670758735,-160.6753128,0.000109,2]
[339512718,1727670758745,-151.34568314,0.000109,2]
[339512719,1727670759153,-655.17291686,0.000109,2]
[339512720,1727670759162,-347.25125625,0.000109,2]
[339512721,1727670759173,-2152.74874375,0.000109,2]
[339512722,1727670759183,-2971.99367688,0.00012226,2]
[339512723,1727670759194,-1070.71197748,0.00012226,2]
[339512724,1727670759209,-2424.99999999,0.00012226,2]
[339512725,1727670759240,-1032.29434565,0.00012226,2]
[339512726,1727670759249,-171.7321,0.00012226,2]
[339512727,1727670759260,-494.4,0.000123,2]
[339512728,1727670759269,-300.0,0.00012327,2]
[339512729,1727670759279,-1005.955,0.00012328,2]
[339512730,1727670759288,-151.0,0.00012329,2]
[339512731,1727670759298,-151.0,0.00012329,2]
[339512732,1727670759307,-683.0,0.00012329,2]
[339512733,1727670759316,-151.0,0.00012329,2]
[339512734,1727670759325,-151.0,0.00012329,2]
[339512735,1727670759335,-151.0,0.00012329,2]
[339512736,1727670759345,-151.0,0.00012329,2]
[339512737,1727670759355,-151.0,0.00012329,2]
[339512738,1727670759366,-151.0,0.00012329,2]
[339512739,1727670759375,-151.0,0.00012329,2]
[339512740,1727670759385,-151.0,0.00012329,2]
[339512741,1727670759394,-151.0,0.00012329,2]
[339512742,1727670759404,-151.0,0.00012329,2]
[339512743,1727670759413,-151.0,0.00012329,2]
[339512744,1727670759422,-151.0,0.00012329,2]
[339512745,1727670759432,-151.0,0.00012329,2]
[339512746,1727670759441,-151.0,0.00012329,2]
[339512747,1727670759451,-151.0,0.00012329,2]
[339512748,1727670759460,-151.0,0.00012329,2]
[339512749,1727670759469,-151.0,0.00012329,2]
[339512750,1727670759478,-151.0,0.00012329,2]
[339512751,1727670759487,-151.0,0.00012329,2]
[339512752,1727670759497,-151.0,0.00012329,2]
[339512753,1727670759507,-182.942458,0.00012329,2]
[339512754,1727670759519,-151.0,0.00012329,2]
[339512755,1727670759529,-151.0,0.00012329,2]
[339512756,1727670759538,-151.0,0.00012329,2]
[339512757,1727670759547,-151.0,0.00012329,2]
[339512758,1727670759558,-151.0,0.00012329,2]
[339512759,1727670759567,-151.0,0.00012329,2]
[339512760,1727670759577,-151.0,0.00012329,2]
[339512761,1727670759586,-151.0,0.00012329,2]
[339512762,1727670759597,-151.0,0.00012329,2]
[339512763,1727670759607,-275.573262,0.00012329,2]
[339512764,1727670759617,-151.0,0.00012329,2]
[339512765,1727670759627,-151.0,0.00012329,2]
[339512766,1727670759636,-151.0,0.00012329,2]
[339512767,1727670759646,-158.15297968,0.00012393,2]
[339512768,1727670759656,-158.15297968,0.00012393,2]
[339512769,1727670759667,-158.15297968,0.00012393,2]
[339512770,1727670759676,-158.15297968,0.00012393,2]
[339512771,1727670759686,-158.65,0.00012393,2]
[339512772,1727670759697,-167.32,0.00012445,2]
[339512773,1727670759706,-586.75748116,0.00012493,2]
[339512774,1727670759716,-1515.3683999,0.00012493,2]
[339512775,1727670759766,-5705.30692601,0.00012493,2]
[339512776,1727670759835,-468.5,0.00012493,2]
[339512777,1727670759944,-2932.5885677,0.00012493,2]
[339512778,1727670759956,-2087.87133032,0.00012493,2]
[339512779,1727670759967,-416.555001,0.00012493,2]
[339512780,1727670759981,-3722.82331032,0.00012493,2]
[339512781,1727670760297,-6256.52830382,0.00012493,2]
[339512782,1727670760519,-17365.08192463,0.00012493,2]
[339512783,1727670760535,-1569.28660335,0.00012493,2]
[339512784,1727670760548,-980.19688546,0.00012493,2]
[339512786,1727670970400,672.07,9.428e-05,2]
[339512788,1727671204372,7218.11170789,9.936e-05,2]
[339512797,1727671674161,638.46,8.968e-05,2]
[339512798,1727671740399,-500.0,0.00010068,2]
[339512799,1727671740421,-402.64497673,0.00010068,2]
[339512800,1727671740444,-176.63,0.00010536,2]
[339512801,1727671740466,-153.97,0.00010736,2]
[339512802,1727671740489,-46391.3541324,0.00010753,2]
[339512803,1727671740512,-153.97,0.00010754,2]
[339512804,1727671740534,-153.97,0.00010772,2]
[339512805,1727671740556,-153.97,0.0001079,2]
[339512806,1727671740577,-150.0,0.00010822,2]
[339512807,1727671740599,-250.0,0.00010854,2]
[339512808,1727671740621,-40.49089087,0.00010854,2]
[339512813,1727671745363,-459.49910913,0.00010854,2]
[339512814,1727671745385,-8569.52,0.00010854,2]
[339512815,1727671745407,-271.62,0.0001092,2]
[339512816,1727671745429,-159.73,0.00010959,2]
[339512817,1727671745451,-156.77,0.00010959,2]
[339512818,1727671745473,-1002.32,0.00010959,2]
[339512819,1727671745495,-250.0,0.00011013,2]
[339512820,1727671745517,-204.71,0.00011109,2]
[339512821,1727671745539,-150.0,0.00011161,2]
[339512822,1727671745560,-6316.93457894,0.00011162,2]
[339512823,1727671745748,-600.0,0.00011164,2]
[339512824,1727671745771,-500.0,0.00011164,2]
[339512825,1727671745794,-1000.0,0.00011188,2]
[339512826,1727671745817,-638.46,0.00011232,2]
[339512827,1727671745840,-339.8713,0.00011243,2]
[339512828,1727671745862,-2500.0,0.00011243,2]
[339512829,1727671745886,-16880.56501193,0.00011343,2]
[339512834,1727671774793,14765.4297,9.968e-05,2]
[339512837,1727671832073,-500.0,0.00011164,2]
[339512838,1727671832083,-292.5901174,0.00011164,2]
[339512839,1727671832094,-207.4098826,0.00011164,2]
[339512840,1727671832103,-53.98669625,0.00011164,2]
[339512841,1727671832114,-446.01330375,0.00011164,2]
[339512842,1727671832124,-1583.9853,0.00011243,2]
[339512843,1727671832133,-1801.1618042,0.00011343,2]
[339512844,1727671832370,-0.29196999,0.00011343,2]
[339512845,1727671832381,-3410.13862831,0.00011343,2]
[339512846,1727671832392,-543.57760332,0.00011343,2]
[339512847,1727671832410,-2922.2,0.00011343,2]
[339512848,1727671832421,-5045.81686439,0.00011343,2]
[339512849,1727671832433,-2613.10872722,0.00011343,2]
[339512850,1727671832444,-542.67878054,0.00011343,2]
[339512851,1727671832456,-598.97184433,0.00011343,2]
[339512852,1727671832467,-1500.0,0.00011343,2]
[339512853,1727671832478,-1974.8225,0.00011343,2]
[339512854,1727671832503,-420.816,0.00011343,2]
[339512857,1727671838033,-537.0,0.00011343,2]
[339512858,1727671838045,-990.63368508,0.00011343,2]
[339512859,1727671838056,-6671.76743209,0.00011343,2]
[339512860,1727671838067,-501.34997255,0.00011343,2]
[339512861,1727671838078,-1733.0050869,0.00011343,2]
[339512862,1727671838089,-1001.66079781,0.00011343,2]
[339512863,1727671838101,-647.57048825,0.00011343,2]
[339512864,1727671838143,-9632.13280309,0.00011343,2]
[339512865,1727671838152,-1732.52,0.00011413,2]
[339512866,1727671838162,-200.0,0.00011426,2]
[339512867,1727671838171,-250.0,0.00011469,2]
[339512868,1727671838180,-156.54,0.00011607,2]
[339512869,1727671838189,-1732.52,0.00011983,2]
[339512870,1727671838198,-281.774,0.00012156,2]
[339512871,1727671838207,-163.446,0.00012156,2]
[339512872,1727671838217,-422.34458308,0.00012166,2]
[339512873,1727671838226,-3000.0,0.000122,2]
[339512874,1727671838235,-255.0,0.0001221,2]
[339512875,1727671838244,-1296.0,0.00012324,2]
[339512876,1727671838252,-448.0,0.00012324,2]
[339512877,1727671838263,-1264.0,0.00012324,2]
[339512878,1727671838272,-625.0,0.00012324,2]
[339512879,1727671838282,-810.0,0.00012324,2]
[339512880,1727671838291,-933.0,0.00012324,2]
[339512881,1727671838300,-150.0,0.00012324,2]
[339512882,1727671838309,-559.0,0.00012324,2]
[339512883,1727671838319,-554.0,0.00012324,2]
[339512884,1727671838327,-1905.0,0.00012324,2]
[339512885,1727671838336,-807.0,0.00012324,2]
[339512886,1727671838347,-3350.0,0.00012324,2]
[339512887,1727671838356,-1911.0,0.00012324,2]
[339512888,1727671838366,-150.0,0.00012324,2]
[339512889,1727671838377,-3124.333,0.00012324,2]
[339512890,1727671838387,-1081.0,0.00012324,2]
[339512891,1727671838396,-620.45325561,0.00012374,2]
[339512892,1727671838407,-222.03726765,0.0001239,2]
[339512894,1727671838417,-222.03726759,0.00012391,2]
[339512896,1727671838427,-500.0,0.00012392,2]
[339512898,1727671838436,-222.03726759,0.00012392,2]
[339512900,1727671838445,-598.296,0.00012393,2]
[339512902,1727671838455,-1360.742,0.00012393,2]
[339512903,1727671838464,-10018.0454,0.00012393,2]
[339512905,1727671838474,-9336.7361,0.00012393,2]
[339512907,1727671838483,-8381.0527,0.00012393,2]
[339512909,1727671838493,-1304.938,0.00012393,2]
[339512911,1727671838502,-919.9495,0.00012393,2]
[339512913,1727671838511,-165.94802207,0.00012393,2]
[339512915,1727671838521,-165.94802207,0.00012393,2]
[339512917,1727671838531,-165.94802207,0.00012393,2]
[339512918,1727671838540,-165.94802207,0.00012393,2]
[339512920,1727671838550,-165.94802207,0.00012393,2]
[339512922,1727671838562,-165.94802207,0.00012393,2]
[339512924,1727671838571,-166.44,0.00012393,2]
[339512926,1727671838580,-158.14469601,0.00012393,2]
[339512928,1727671838589,-158.14469601,0.00012393,2]
[339512930,1727671838598,-158.14469601,0.00012393,2]
[339512932,1727671838608,-158.14469601,0.00012393,2]
[339512934,1727671838617,-158.14469601,0.00012393,2]
[339512936,1727671838626,-158.14469601,0.00012393,2]
[339512938,1727671838636,-158.14469601,0.00012393,2]
[339512941,1727671838645,-158.14469601,0.00012393,2]
[339512943,1727671838655,-158.14469601,0.00012393,2]
[339512945,1727671838664,-158.14469601,0.00012393,2]
[339512947,1727671838674,-158.14469601,0.00012393,2]
[339512949,1727671838683,-158.64,0.00012393,2]
[339512951,1727671838693,-161.13392357,0.00012393,2]
[339512953,1727671838703,-161.13392357,0.00012393,2]
[339512955,1727671838712,-161.13392357,0.00012393,2]
[339512957,1727671838721,-161.13392357,0.00012393,2]
[339512959,1727671838731,-161.13392357,0.00012393,2]
[339512961,1727671838740,-161.13392357,0.00012393,2]
[339512963,1727671838749,-161.13392357,0.00012393,2]
[339512965,1727671838759,-161.13392357,0.00012393,2]
[339512967,1727671838768,-161.13392357,0.00012393,2]
[339512969,1727671838777,-161.13392357,0.00012393,2]
[339512971,1727671838786,-161.13392357,0.00012393,2]
[339512973,1727671838796,-161.13392357,0.00012393,2]
[339512975,1727671838806,-161.63,0.00012393,2]
[339512977,1727671838815,-167.3809941,0.00012393,2]
[339512979,1727671838825,-207.69530561,0.00012393,2]
[339512981,1727671838834,-500.0,0.00012393,2]
[339512983,1727671838843,-2000.0,0.00012393,2]
[339512985,1727671838852,-500.0,0.00012393,2]
[339512987,1727671838862,-500.0,0.00012393,2]
[339512989,1727671838871,-200.0,0.00012393,2]
[339512991,1727671838880,-222.03726759,0.00012393,2]
[339512993,1727671838893,-222.03726759,0.00012394,2]
[339512995,1727671838902,-222.03726759,0.00012396,2]
[339512997,1727671838911,-222.03726759,0.00012397,2]
[339512999,1727671838921,-222.03726759,0.00012398,2]
[339513001,1727671838931,-222.03726759,0.00012399,2]
[339513003,1727671838941,-167.38099409,0.000124,2]
[339513005,1727671838950,-305.58,0.000124,2]
[339513007,1727671838959,-1010.5,0.000124,2]
[339513009,1727671838969,-167.34,0.00012445,2]
[339513011,1727671838979,-501.060324,0.00012473,2]
[339513013,1727671838988,-500.08259838,0.00012473,2]
[339513015,1727671838998,-159.65833327,0.00012473,2]
[339513016,1727671839007,-500.54152361,0.00012473,2]
[339513017,1727671839017,-154.32,0.00012483,2]
[339513018,1727671839026,-294.06786737,0.00012483,2]
[339513019,1727671839035,-138662.45286103,0.0001249,7]
[339513020,1727671839044,-22075.85899023,0.0001249,7]
[339513021,1727671839057,-150.88728716,0.00012492,2]
[339513022,1727671839066,-1915.43837717,0.00012492,2]
[339513023,1727671839075,-500.0,0.00012492,2]
[339513024,1727671839083,-500.0,0.00012492,2]
[339513025,1727671839092,-284.51618218,0.00012492,2]
[339513026,1727671839102,-245.39877329,0.00012492,2]
[339513027,1727671839112,-500.0,0.00012492,2]
[339513028,1727671839122,-402.93944758,0.00012492,2]
[339513029,1727671839131,-158.84029885,0.00012492,2]
[339513030,1727671839141,-500.0,0.00012492,2]
[339513031,1727671839151,-500.0,0.00012492,2]
[339513032,1727671839162,-381.63978719,0.00012492,2]
[339513033,1727671839171,-662.0,0.00012493,2]
[339513034,1727671839180,-469.40598492,0.00012493,2]
[339513035,1727671839189,-115346.88949537,0.00012493,2]
[339513036,1727671839506,-5906.63080696,0.00012493,2]
[339513037,1727671839532,-397999.72058113,0.00012493,2]
[339513038,1727671839542,-431.41049964,0.00012493,2]
[339513039,1727671839553,-500.30575336,0.00012493,2]
[339513040,1727671839564,-298.80052346,0.00012493,2]
[339513041,1727671839572,-339.84401184,0.00012493,2]
[339513042,1727671839582,-500.32139525,0.00012493,2]
[339513043,1727671839591,-500.0,0.00012493,2]
[339513044,1727671839601,-500.0,0.00012493,2]
[339513045,1727671839610,-275.43747195,0.00012493,2]
[339513046,1727671839620,-200.0,0.00012493,2]
[339513047,1727671839629,-261.698416,0.00012493,2]
[339513048,1727671839638,-500.0,0.00012493,2]
[339513049,1727671839647,-500.0,0.00012493,2]
[339513050,1727671839656,-498.79447944,0.00012493,2]
[339513051,1727671839666,-595.57593341,0.00012493,2]
[339513052,1727671839676,-563.18095757,0.00012493,2]
[339513053,1727671839685,-500.0,0.00012493,2]